[Event "Titled Tuesday Blitz March 28 Late 2023"]
[White "Karas, Marek"]
[Black "Danielyan, Vahe"]
[WhiteFideId "14928558"]
[BlackFideId "13304828"]
[WhiteElo "2233"]
[BlackElo "2423"]
[Result "1-0"]
[Round "03"]
[TimeControl "180+2"]
[Date "2023.03.28"]
[WhiteClock "0:00:02"]
[BlackClock "0:00:05"]

1. d4 {[%clk 0:02:54]}  d5 {[%clk 0:02:58]} 2. Bf4 {[%clk 0:02:49]}  Nf6 {[%clk 0:02:56]} 3. e3 {[%clk 0:02:50]}  a6 {[%clk 0:02:56]} 4. c4 {[%clk 0:02:49]}  e6 {[%clk 0:02:51]} 5. cxd5 {[%clk 0:02:46]}  exd5 {[%clk 0:02:50]} 6. Nc3 {[%clk 0:02:46]}  Bb4 {[%clk 0:02:49]} 7. Bd3 {[%clk 0:02:46]}  O-O {[%clk 0:02:49]} 8. Nf3 {[%clk 0:02:45]}  Bg4 {[%clk 0:02:47]} 9. h3 {[%clk 0:02:44]}  Bh5 {[%clk 0:02:47]} 10. O-O {[%clk 0:02:42]}  Nbd7 {[%clk 0:02:43]} 11. Rc1 {[%clk 0:02:36]}  c6 {[%clk 0:02:41]} 12. Be2 {[%clk 0:02:35]}  Re8 {[%clk 0:02:41]} 13. Ne5 {[%clk 0:02:34]}  Bxe2 {[%clk 0:02:40]} 14. Qxe2 {[%clk 0:02:34]}  Nxe5 {[%clk 0:02:38]} 15. Bxe5 {[%clk 0:02:35]}  Nd7 {[%clk 0:02:31]} 16. Bg3 {[%clk 0:02:31]}  Be7 {[%clk 0:02:21]} 17. Qf3 {[%clk 0:02:28]}  Bf6 {[%clk 0:02:21]} 18. Rfd1 {[%clk 0:02:19]}  Qb6 {[%clk 0:02:21]} 19. Rb1 {[%clk 0:02:10]}  Re6 {[%clk 0:02:20]} 20. b4 {[%clk 0:02:02]}  Rae8 {[%clk 0:02:17]} 21. Na4 {[%clk 0:02:02]}  Qb5 {[%clk 0:01:52]} 22. Nc5 {[%clk 0:02:02]}  Nxc5 {[%clk 0:01:52]} 23. bxc5 {[%clk 0:02:03]}  Qa4 {[%clk 0:01:51]} 24. Rxb7 {[%clk 0:02:00]}  Qxa2 {[%clk 0:01:49]} 25. Rdb1 {[%clk 0:01:55]}  h6 {[%clk 0:01:44]} 26. Rb8 {[%clk 0:01:53]}  a5 {[%clk 0:01:44]} 27. R8b2 {[%clk 0:01:26]}  Qc4 {[%clk 0:01:43]} 28. Qd1 {[%clk 0:01:22]}  Ra8 {[%clk 0:01:31]} 29. Rc1 {[%clk 0:01:14]}  Qa6 {[%clk 0:01:27]} 30. Rb6 {[%clk 0:01:07]}  Qc8 {[%clk 0:01:24]} 31. Qa4 {[%clk 0:01:08]}  Bd8 {[%clk 0:01:19]} 32. Rb3 {[%clk 0:01:05]}  Bc7 {[%clk 0:01:18]} 33. Bxc7 {[%clk 0:01:02]}  Qxc7 {[%clk 0:01:19]} 34. Rcb1 {[%clk 0:01:02]}  Qd8 {[%clk 0:01:10]} 35. Rb6 {[%clk 0:00:57]}  Qe8 {[%clk 0:01:09]} 36. Qb3 {[%clk 0:00:48]}  a4 {[%clk 0:01:08]} 37. Qb4 {[%clk 0:00:48]}  Kh7 {[%clk 0:01:03]} 38. Rb8 {[%clk 0:00:46]}  Rxb8 {[%clk 0:00:59]} 39. Qxb8 {[%clk 0:00:47]}  a3 {[%clk 0:00:52]} 40. Qb3 {[%clk 0:00:36]}  f5 {[%clk 0:00:43]} 41. Qxa3 {[%clk 0:00:35]}  Qg6 {[%clk 0:00:43]} 42. Qd3 {[%clk 0:00:33]}  Re4 {[%clk 0:00:42]} 43. Kh2 {[%clk 0:00:23]}  h5 {[%clk 0:00:41]} 44. f3 {[%clk 0:00:22]}  Re6 {[%clk 0:00:41]} 45. Re1 {[%clk 0:00:18]}  h4 {[%clk 0:00:40]} 46. Qe2 {[%clk 0:00:15]}  f4 {[%clk 0:00:40]} 47. Qf2 {[%clk 0:00:13]}  Qg3+ {[%clk 0:00:31]} 48. Kg1 {[%clk 0:00:13]}  Qg5 {[%clk 0:00:06]} 49. exf4 {[%clk 0:00:12]}  Rxe1+ {[%clk 0:00:07]} 50. Qxe1 {[%clk 0:00:12]}  Qxf4 {[%clk 0:00:08]} 51. Qe5 {[%clk 0:00:10]}  Qd2 {[%clk 0:00:04]} 52. Qh5+ {[%clk 0:00:09]}  Kg8 {[%clk 0:00:04]} 53. Qe8+ {[%clk 0:00:10]}  Kh7 {[%clk 0:00:04]} 54. Qh5+ {[%clk 0:00:10]}  Kg8 {[%clk 0:00:03]} 55. Qxh4 {[%clk 0:00:10]}  Qe3+ {[%clk 0:00:03]} 56. Kh2 {[%clk 0:00:10]}  g5 {[%clk 0:00:04]} 57. Qg4 {[%clk 0:00:08]}  Kf7 {[%clk 0:00:04]} 58. Qd7+ {[%clk 0:00:07]}  Kg8 {[%clk 0:00:04]} 59. Qd8+ {[%clk 0:00:07]}  Kf7 {[%clk 0:00:04]} 60. Qd7+ {[%clk 0:00:07]}  Kg8 {[%clk 0:00:04]} 61. Qxc6 {[%clk 0:00:08]}  Qf4+ {[%clk 0:00:03]} 62. Kg1 {[%clk 0:00:05]}  Qxd4+ {[%clk 0:00:03]} 63. Kf1 {[%clk 0:00:05]}  Qd3+ {[%clk 0:00:03]} 64. Kf2 {[%clk 0:00:05]}  Qd4+ {[%clk 0:00:04]} 65. Kf1 {[%clk 0:00:03]}  Qc4+ {[%clk 0:00:03]} 66. Ke1 {[%clk 0:00:03]}  d4 {[%clk 0:00:04]} 67. Qc8+ {[%clk 0:00:01]}  Kf7 {[%clk 0:00:04]} 68. Qd7+ {[%clk 0:00:01]}  Kf6 {[%clk 0:00:05]} 69. Qd6+ {[%clk 0:00:02]}  Kf5 {[%clk 0:00:05]} 70. g4# {[%clk 0:00:02]} 1-0


[Site "https://www.chess.com"]

[Event "Titled Tuesday Blitz March 28 Late 2023"]
[White "Sourath Biswas"]
[Black "Bouget, Alexandre"]
[WhiteFideId "35091484"]
[BlackFideId "681318"]
[WhiteElo "2164"]
[BlackElo "2177"]
[Result "1-0"]
[Round "03"]
[TimeControl "180+2"]
[Date "2023.03.28"]
[WhiteClock "0:00:20"]
[BlackClock "0:00:01"]

1. d4 {[%clk 0:02:58]}  c6 {[%clk 0:02:47]} 2. Nf3 {[%clk 0:02:54]}  Na6 {[%clk 0:02:46]} 3. e4 {[%clk 0:02:54]}  g6 {[%clk 0:02:44]} 4. Nc3 {[%clk 0:02:52]}  Bg7 {[%clk 0:02:45]} 5. Bf4 {[%clk 0:02:49]}  Nc7 {[%clk 0:02:45]} 6. Qd2 {[%clk 0:02:48]}  d5 {[%clk 0:02:33]} 7. e5 {[%clk 0:02:47]}  Bg4 {[%clk 0:02:29]} 8. Be2 {[%clk 0:02:47]}  Ne6 {[%clk 0:02:28]} 9. Be3 {[%clk 0:02:47]}  h5 {[%clk 0:02:24]} 10. h3 {[%clk 0:02:46]}  Bxf3 {[%clk 0:02:22]} 11. Bxf3 {[%clk 0:02:47]}  Nh6 {[%clk 0:02:22]} 12. g4 {[%clk 0:02:44]}  Qb6 {[%clk 0:02:11]} 13. O-O-O {[%clk 0:02:42]}  O-O-O {[%clk 0:02:07]} 14. Rdg1 {[%clk 0:02:35]}  Kb8 {[%clk 0:02:05]} 15. Ne2 {[%clk 0:02:23]}  h4 {[%clk 0:01:53]} 16. Nf4 {[%clk 0:02:16]}  Nc7 {[%clk 0:01:29]} 17. Be2 {[%clk 0:02:05]}  e6 {[%clk 0:00:57]} 18. Nd3 {[%clk 0:02:03]}  Na6 {[%clk 0:00:52]} 19. f4 {[%clk 0:01:51]}  Rc8 {[%clk 0:00:52]} 20. Rf1 {[%clk 0:01:33]}  Bf8 {[%clk 0:00:51]} 21. Rhg1 {[%clk 0:01:14]}  c5 {[%clk 0:00:50]} 22. dxc5 {[%clk 0:01:14]}  Nxc5 {[%clk 0:00:51]} 23. f5 {[%clk 0:01:14]}  gxf5 {[%clk 0:00:32]} 24. g5 {[%clk 0:01:02]}  Ng8 {[%clk 0:00:31]} 25. g6 {[%clk 0:01:03]}  fxg6 {[%clk 0:00:29]} 26. Rxg6 {[%clk 0:01:03]}  d4 {[%clk 0:00:28]} 27. Bxd4 {[%clk 0:00:57]}  Nb3+ {[%clk 0:00:26]} 28. axb3 {[%clk 0:00:57]}  Qxd4 {[%clk 0:00:26]} 29. Rxe6 {[%clk 0:00:55]}  Bh6 {[%clk 0:00:22]} 30. Nf4 {[%clk 0:00:49]}  Bxf4 {[%clk 0:00:20]} 31. Qxf4 {[%clk 0:00:48]}  Qd5 {[%clk 0:00:17]} 32. Bc4 {[%clk 0:00:36]}  Qg2 {[%clk 0:00:15]} 33. Qxf5 {[%clk 0:00:19]}  Nh6 {[%clk 0:00:14]} 34. Qf3 {[%clk 0:00:18]}  Qg5+ {[%clk 0:00:03]} 35. Kb1 {[%clk 0:00:19]}  Rhf8 {[%clk 0:00:03]} 36. Qxf8 {[%clk 0:00:19]}  Rxf8 {[%clk 0:00:03]} 37. Rxf8+ {[%clk 0:00:20]}  Kc7 {[%clk 0:00:03]} 38. Rff6 {[%clk 0:00:20]}  Qg1+ {[%clk 0:00:03]} 39. Ka2 {[%clk 0:00:20]}  Qc1 {[%clk 0:00:01]} 40. Rxh6 {[%clk 0:00:20]} 1-0


[Site "https://www.chess.com"]

[Event "Titled Tuesday Blitz March 28 Late 2023"]
[White "Fan_Of_Chucky"]
[Black "Taboas Rodriguez, Daniel"]
[BlackFideId "2208466"]
[WhiteElo "2365"]
[BlackElo "2365"]
[Result "0-1"]
[Round "03"]
[TimeControl "180+2"]
[Date "2023.03.28"]
[WhiteClock "0:00:13"]
[BlackClock "0:01:15"]

1. d4 {[%clk 0:03:00]}  Nf6 {[%clk 0:02:59]} 2. c4 {[%clk 0:03:01]}  g6 {[%clk 0:02:59]} 3. Nc3 {[%clk 0:03:01]}  Bg7 {[%clk 0:02:59]} 4. e4 {[%clk 0:03:02]}  d6 {[%clk 0:02:59]} 5. h3 {[%clk 0:03:02]}  O-O {[%clk 0:03:00]} 6. Be3 {[%clk 0:03:02]}  Nc6 {[%clk 0:02:59]} 7. d5 {[%clk 0:02:52]}  Ne5 {[%clk 0:02:58]} 8. f4 {[%clk 0:02:49]}  Ned7 {[%clk 0:02:56]} 9. g4 {[%clk 0:02:47]}  e6 {[%clk 0:02:56]} 10. Bg2 {[%clk 0:02:43]}  exd5 {[%clk 0:02:55]} 11. cxd5 {[%clk 0:02:38]}  Re8 {[%clk 0:02:55]} 12. Nge2 {[%clk 0:02:35]}  b5 {[%clk 0:02:47]} 13. Nd4 {[%clk 0:02:26]}  Nc5 {[%clk 0:02:42]} 14. Nc6 {[%clk 0:02:18]}  Qd7 {[%clk 0:02:37]} 15. e5 {[%clk 0:02:01]}  Bb7 {[%clk 0:02:14]} 16. exf6 {[%clk 0:01:50]}  Rxe3+ {[%clk 0:02:14]} 17. Kf2 {[%clk 0:01:50]}  Rxc3 {[%clk 0:02:07]} 18. bxc3 {[%clk 0:01:35]}  Bxf6 {[%clk 0:02:06]} 19. Qd2 {[%clk 0:01:32]}  Bxc6 {[%clk 0:01:49]} 20. dxc6 {[%clk 0:01:31]}  Qe6 {[%clk 0:01:49]} 21. Bd5 {[%clk 0:01:10]}  Ne4+ {[%clk 0:01:42]} 22. Bxe4 {[%clk 0:01:03]}  Qxe4 {[%clk 0:01:43]} 23. Rab1 {[%clk 0:00:42]}  Qxc6 {[%clk 0:01:27]} 24. Qd3 {[%clk 0:00:34]}  a6 {[%clk 0:01:18]} 25. Rbc1 {[%clk 0:00:14]}  Re8 {[%clk 0:01:15]} 26. Rhe1 {[%clk 0:00:13]}  Bh4+ {[%clk 0:01:15]} 27. Kf1 {[%clk 0:00:12]}  Bxe1 {[%clk 0:01:15]} 28. Rxe1 {[%clk 0:00:13]}  Qh1+ {[%clk 0:01:15]} 0-1


[Site "https://www.chess.com"]

[Event "Titled Tuesday Blitz March 28 Late 2023"]
[White "Xie, Bryan"]
[Black "Atanasov, Anthony"]
[WhiteFideId "30941296"]
[BlackFideId "2623897"]
[WhiteElo "2033"]
[BlackElo "2206"]
[Result "1-0"]
[Round "03"]
[TimeControl "180+2"]
[Date "2023.03.28"]
[WhiteClock "0:00:33"]
[BlackClock "0:00:01"]

1. e4 {[%clk 0:03:00]}  e5 {[%clk 0:02:05]} 2. Nf3 {[%clk 0:03:00]}  Nf6 {[%clk 0:02:01]} 3. Nxe5 {[%clk 0:02:58]}  d6 {[%clk 0:02:02]} 4. Nf3 {[%clk 0:02:58]}  Nxe4 {[%clk 0:02:02]} 5. d3 {[%clk 0:02:56]}  Nf6 {[%clk 0:02:02]} 6. d4 {[%clk 0:02:57]}  g6 {[%clk 0:02:02]} 7. Bd3 {[%clk 0:02:57]}  Bg7 {[%clk 0:02:03]} 8. O-O {[%clk 0:02:58]}  O-O {[%clk 0:02:04]} 9. c3 {[%clk 0:02:58]}  c6 {[%clk 0:02:04]} 10. h3 {[%clk 0:02:57]}  h6 {[%clk 0:02:03]} 11. Bf4 {[%clk 0:02:57]}  d5 {[%clk 0:02:03]} 12. Nbd2 {[%clk 0:02:57]}  Nh5 {[%clk 0:02:02]} 13. Bh2 {[%clk 0:02:57]}  f5 {[%clk 0:02:02]} 14. Re1 {[%clk 0:02:48]}  Nd7 {[%clk 0:02:01]} 15. Qe2 {[%clk 0:02:19]}  Ndf6 {[%clk 0:01:59]} 16. Ne5 {[%clk 0:02:19]}  Kh7 {[%clk 0:01:53]} 17. g4 {[%clk 0:02:16]}  fxg4 {[%clk 0:01:38]} 18. hxg4 {[%clk 0:02:15]}  Nxg4 {[%clk 0:01:36]} 19. Bxg6+ {[%clk 0:01:58]}  Kg8 {[%clk 0:01:33]} 20. Nxg4 {[%clk 0:01:41]}  Nf4 {[%clk 0:01:10]} 21. Bxf4 {[%clk 0:01:39]}  Rxf4 {[%clk 0:01:10]} 22. Qe8+ {[%clk 0:01:38]}  Qxe8 {[%clk 0:01:05]} 23. Rxe8+ {[%clk 0:01:39]}  Bf8 {[%clk 0:01:05]} 24. Ne5 {[%clk 0:01:32]}  Kg7 {[%clk 0:01:01]} 25. Bh5 {[%clk 0:01:20]}  b6 {[%clk 0:00:48]} 26. Nxc6 {[%clk 0:01:05]}  Rf5 {[%clk 0:00:35]} 27. Be2 {[%clk 0:00:56]}  Rg5+ {[%clk 0:00:34]} 28. Kh1 {[%clk 0:00:51]}  Bd6 {[%clk 0:00:06]} 29. Rg1 {[%clk 0:00:46]}  Kf7 {[%clk 0:00:02]} 30. Rxg5 {[%clk 0:00:41]}  hxg5 {[%clk 0:00:01]} 31. Bh5+ {[%clk 0:00:41]}  Kf6 {[%clk 0:00:01]} 32. Nxa7 {[%clk 0:00:33]}  Rxa7 {[%clk 0:00:01]} 33. Rxc8 {[%clk 0:00:33]}  Rxa2 {[%clk 0:00:01]} 34. Rc6 {[%clk 0:00:33]} 1-0


[Site "https://www.chess.com"]

[Event "Titled Tuesday Blitz March 28 Late 2023"]
[White "Olenik Campa, Rudi"]
[Black "Todev, Simeon"]
[WhiteFideId "14633264"]
[BlackFideId "2925133"]
[WhiteElo "2249"]
[BlackElo "1938"]
[Result "1-0"]
[Round "03"]
[TimeControl "180+2"]
[Date "2023.03.28"]
[WhiteClock "0:01:32"]
[BlackClock "0:01:06"]

1. e4 {[%clk 0:03:00]}  c5 {[%clk 0:02:53]} 2. Nf3 {[%clk 0:03:00]}  Nc6 {[%clk 0:02:50]} 3. Bb5 {[%clk 0:03:00]}  d6 {[%clk 0:02:47]} 4. O-O {[%clk 0:02:59]}  Nf6 {[%clk 0:02:40]} 5. Re1 {[%clk 0:02:59]}  e5 {[%clk 0:02:36]} 6. c3 {[%clk 0:02:59]}  Be7 {[%clk 0:02:34]} 7. d4 {[%clk 0:02:59]}  cxd4 {[%clk 0:02:33]} 8. cxd4 {[%clk 0:02:59]}  exd4 {[%clk 0:02:34]} 9. Nxd4 {[%clk 0:02:59]}  Bd7 {[%clk 0:02:35]} 10. Nc3 {[%clk 0:02:55]}  O-O {[%clk 0:02:31]} 11. Bf1 {[%clk 0:02:55]}  a6 {[%clk 0:02:30]} 12. Nxc6 {[%clk 0:02:55]}  Bxc6 {[%clk 0:02:30]} 13. Bf4 {[%clk 0:02:50]}  d5 {[%clk 0:02:30]} 14. e5 {[%clk 0:02:50]}  Ne4 {[%clk 0:02:30]} 15. Bd3 {[%clk 0:02:47]}  Nxc3 {[%clk 0:02:28]} 16. bxc3 {[%clk 0:02:47]}  Bc5 {[%clk 0:02:27]} 17. Qh5 {[%clk 0:02:42]}  g6 {[%clk 0:02:27]} 18. Qh6 {[%clk 0:02:38]}  f6 {[%clk 0:02:12]} 19. e6 {[%clk 0:02:08]}  d4 {[%clk 0:01:57]} 20. Bxg6 {[%clk 0:01:36]}  hxg6 {[%clk 0:01:50]} 21. Qxg6+ {[%clk 0:01:37]}  Kh8 {[%clk 0:01:51]} 22. Re5 {[%clk 0:01:37]}  f5 {[%clk 0:01:35]} 23. Rxc5 {[%clk 0:01:34]}  Qf6 {[%clk 0:01:06]} 24. Be5 {[%clk 0:01:32]} 1-0


[Site "https://www.chess.com"]

[Event "Titled Tuesday Blitz March 28 Late 2023"]
[White "Van Foreest, Machteld"]
[Black "Fiorito, Francisco"]
[WhiteFideId "1051563"]
[BlackFideId "180165"]
[WhiteElo "2018"]
[BlackElo "2341"]
[Result "0-1"]
[Round "03"]
[TimeControl "180+2"]
[Date "2023.03.28"]
[WhiteClock "0:00:03"]
[BlackClock "0:01:24"]

1. e4 {[%clk 0:02:52]}  c5 {[%clk 0:02:59]} 2. Nf3 {[%clk 0:02:52]}  Nc6 {[%clk 0:02:58]} 3. d4 {[%clk 0:02:51]}  cxd4 {[%clk 0:02:59]} 4. Nxd4 {[%clk 0:02:52]}  g6 {[%clk 0:03:00]} 5. c4 {[%clk 0:02:51]}  Nf6 {[%clk 0:02:59]} 6. Nc3 {[%clk 0:02:51]}  d6 {[%clk 0:02:59]} 7. Be3 {[%clk 0:02:47]}  Ng4 {[%clk 0:02:58]} 8. Bg5 {[%clk 0:02:29]}  Qb6 {[%clk 0:02:57]} 9. Be3 {[%clk 0:01:32]}  Nxe3 {[%clk 0:02:56]} 10. fxe3 {[%clk 0:01:33]}  Bg7 {[%clk 0:02:48]} 11. Nd5 {[%clk 0:01:21]}  Qd8 {[%clk 0:02:47]} 12. Be2 {[%clk 0:01:19]}  e6 {[%clk 0:02:46]} 13. Nc3 {[%clk 0:01:14]}  O-O {[%clk 0:02:41]} 14. O-O {[%clk 0:01:14]}  Qg5 {[%clk 0:02:39]} 15. Rf3 {[%clk 0:00:53]}  Rd8 {[%clk 0:02:30]} 16. Rg3 {[%clk 0:00:38]}  Qc5 {[%clk 0:02:28]} 17. Nxc6 {[%clk 0:00:32]}  bxc6 {[%clk 0:02:25]} 18. Qd2 {[%clk 0:00:32]}  Ba6 {[%clk 0:02:25]} 19. Na4 {[%clk 0:00:27]}  Qe5 {[%clk 0:02:22]} 20. Bd3 {[%clk 0:00:19]}  Rab8 {[%clk 0:02:22]} 21. Rf3 {[%clk 0:00:17]}  c5 {[%clk 0:02:17]} 22. Raf1 {[%clk 0:00:17]}  Rd7 {[%clk 0:02:16]} 23. b3 {[%clk 0:00:17]}  Bb7 {[%clk 0:02:13]} 24. Qc2 {[%clk 0:00:17]}  f5 {[%clk 0:02:10]} 25. exf5 {[%clk 0:00:13]}  exf5 {[%clk 0:02:10]} 26. R3f2 {[%clk 0:00:11]}  Qxe3 {[%clk 0:02:09]} 27. Nc3 {[%clk 0:00:10]}  Bd4 {[%clk 0:02:05]} 28. Nd5 {[%clk 0:00:09]}  Bxd5 {[%clk 0:02:05]} 29. cxd5 {[%clk 0:00:10]}  Qe5 {[%clk 0:02:05]} 30. Kh1 {[%clk 0:00:07]}  Bxf2 {[%clk 0:02:05]} 31. Qxf2 {[%clk 0:00:08]}  Re8 {[%clk 0:02:05]} 32. Bb5 {[%clk 0:00:08]}  Rde7 {[%clk 0:01:59]} 33. Bxe8 {[%clk 0:00:08]}  Rxe8 {[%clk 0:02:00]} 34. h3 {[%clk 0:00:09]}  Qxd5 {[%clk 0:01:59]} 35. Qc2 {[%clk 0:00:08]}  Qe4 {[%clk 0:01:59]} 36. Qc3 {[%clk 0:00:08]}  Qe5 {[%clk 0:01:56]} 37. Qc4+ {[%clk 0:00:07]}  Kg7 {[%clk 0:01:56]} 38. Rd1 {[%clk 0:00:07]}  Re7 {[%clk 0:01:55]} 39. Rd5 {[%clk 0:00:07]}  Qf6 {[%clk 0:01:52]} 40. Qd3 {[%clk 0:00:06]}  Qg5 {[%clk 0:01:38]} 41. Qd1 {[%clk 0:00:04]}  Qg3 {[%clk 0:01:33]} 42. Qa1+ {[%clk 0:00:03]}  Kh6 {[%clk 0:01:32]} 43. Qc1+ {[%clk 0:00:03]}  f4 {[%clk 0:01:32]} 44. Rd1 {[%clk 0:00:03]}  Re2 {[%clk 0:01:30]} 45. Rg1 {[%clk 0:00:02]}  g5 {[%clk 0:01:28]} 46. Qc4 {[%clk 0:00:02]}  f3 {[%clk 0:01:25]} 47. Qf7 {[%clk 0:00:03]}  fxg2+ {[%clk 0:01:23]} 48. Rxg2 {[%clk 0:00:03]}  Qxg2# {[%clk 0:01:24]} 0-1


[Site "https://www.chess.com"]

[Event "Titled Tuesday Blitz March 28 Late 2023"]
[White "Drori, Saar"]
[Black "Onslow, Alfie"]
[WhiteFideId "2812444"]
[BlackFideId "436976"]
[WhiteElo "2322"]
[BlackElo "2114"]
[Result "1-0"]
[Round "03"]
[TimeControl "180+2"]
[Date "2023.03.28"]
[WhiteClock "0:00:14"]
[BlackClock "0:00:04"]

1. e4 {[%clk 0:03:00]}  g6 {[%clk 0:02:59]} 2. d4 {[%clk 0:03:00]}  Bg7 {[%clk 0:02:59]} 3. Nc3 {[%clk 0:03:01]}  c6 {[%clk 0:03:00]} 4. f4 {[%clk 0:03:00]}  d5 {[%clk 0:03:00]} 5. e5 {[%clk 0:03:00]}  h5 {[%clk 0:03:00]} 6. Nf3 {[%clk 0:03:00]}  Nh6 {[%clk 0:03:00]} 7. Bd3 {[%clk 0:03:01]}  Bf5 {[%clk 0:02:56]} 8. O-O {[%clk 0:02:59]}  e6 {[%clk 0:02:55]} 9. Ne2 {[%clk 0:02:53]}  Nd7 {[%clk 0:02:54]} 10. c3 {[%clk 0:02:38]}  h4 {[%clk 0:02:42]} 11. Ng5 {[%clk 0:02:24]}  Bf8 {[%clk 0:02:33]} 12. h3 {[%clk 0:01:54]}  Be7 {[%clk 0:02:32]} 13. Nf3 {[%clk 0:01:48]}  Qb6 {[%clk 0:02:24]} 14. Be3 {[%clk 0:01:38]}  a5 {[%clk 0:01:59]} 15. Rb1 {[%clk 0:01:35]}  Kf8 {[%clk 0:01:53]} 16. Bf2 {[%clk 0:01:34]}  Bxd3 {[%clk 0:01:50]} 17. Qxd3 {[%clk 0:01:35]}  Nf5 {[%clk 0:01:50]} 18. b3 {[%clk 0:01:25]}  Qa6 {[%clk 0:01:44]} 19. c4 {[%clk 0:01:25]}  Kg7 {[%clk 0:01:43]} 20. Rfc1 {[%clk 0:01:14]}  b5 {[%clk 0:01:27]} 21. cxd5 {[%clk 0:01:02]}  cxd5 {[%clk 0:01:19]} 22. Rc7 {[%clk 0:01:01]}  Rhd8 {[%clk 0:01:16]} 23. Rbc1 {[%clk 0:00:57]}  Nb6 {[%clk 0:00:23]} 24. R1c6 {[%clk 0:00:43]}  Rac8 {[%clk 0:00:21]} 25. a4 {[%clk 0:00:38]}  Rxc7 {[%clk 0:00:14]} 26. Rxc7 {[%clk 0:00:39]}  Rc8 {[%clk 0:00:09]} 27. axb5 {[%clk 0:00:33]}  Qa8 {[%clk 0:00:08]} 28. Qc3 {[%clk 0:00:28]}  Bd8 {[%clk 0:00:05]} 29. Rxc8 {[%clk 0:00:24]}  Qxc8 {[%clk 0:00:06]} 30. Qxc8 {[%clk 0:00:18]}  Nxc8 {[%clk 0:00:07]} 31. Nc3 {[%clk 0:00:18]}  Be7 {[%clk 0:00:05]} 32. Na4 {[%clk 0:00:16]}  Kf8 {[%clk 0:00:04]} 33. b6 {[%clk 0:00:15]}  Nxb6 {[%clk 0:00:02]} 34. Nxb6 {[%clk 0:00:15]}  Ke8 {[%clk 0:00:03]} 35. Be1 {[%clk 0:00:14]}  Kd8 {[%clk 0:00:03]} 36. Bxa5 {[%clk 0:00:14]}  Kc7 {[%clk 0:00:03]} 37. Nxd5+ {[%clk 0:00:14]}  Kc6 {[%clk 0:00:04]} 38. Nxe7+ {[%clk 0:00:14]} 1-0


[Site "https://www.chess.com"]

[Event "Titled Tuesday Blitz March 28 Late 2023"]
[White "Jimenez, Joaquin"]
[Black "Koellner, Ruben Gideon"]
[WhiteFideId "109860"]
[BlackFideId "12993093"]
[WhiteElo "2163"]
[BlackElo "2303"]
[Result "0-1"]
[Round "03"]
[TimeControl "180+2"]
[Date "2023.03.28"]
[WhiteClock "0:00:58"]
[BlackClock "0:01:40"]

1. d4 {[%clk 0:03:00]}  d6 {[%clk 0:03:00]} 2. c4 {[%clk 0:03:00]}  e5 {[%clk 0:03:00]} 3. Nf3 {[%clk 0:02:58]}  e4 {[%clk 0:03:00]} 4. Ng5 {[%clk 0:02:58]}  f5 {[%clk 0:03:00]} 5. Nc3 {[%clk 0:02:57]}  Be7 {[%clk 0:03:00]} 6. h4 {[%clk 0:02:49]}  Nf6 {[%clk 0:03:01]} 7. e3 {[%clk 0:02:40]}  O-O {[%clk 0:03:02]} 8. Qb3 {[%clk 0:02:35]}  c5 {[%clk 0:03:01]} 9. dxc5 {[%clk 0:02:30]}  dxc5 {[%clk 0:03:02]} 10. Bd2 {[%clk 0:02:30]}  h6 {[%clk 0:03:02]} 11. Nh3 {[%clk 0:02:29]}  Nc6 {[%clk 0:03:01]} 12. Nf4 {[%clk 0:02:28]}  Ne5 {[%clk 0:02:59]} 13. O-O-O {[%clk 0:02:26]}  Qb6 {[%clk 0:02:59]} 14. Ncd5 {[%clk 0:02:23]}  Qxb3 {[%clk 0:02:52]} 15. Nxe7+ {[%clk 0:02:22]}  Kf7 {[%clk 0:02:52]} 16. axb3 {[%clk 0:02:22]}  Kxe7 {[%clk 0:02:51]} 17. Bc3 {[%clk 0:02:22]}  Neg4 {[%clk 0:02:36]} 18. Ng6+ {[%clk 0:02:18]}  Kf7 {[%clk 0:02:36]} 19. Nxf8 {[%clk 0:02:18]}  Nxf2 {[%clk 0:02:37]} 20. Bxf6 {[%clk 0:02:13]}  gxf6 {[%clk 0:02:26]} 21. Be2 {[%clk 0:02:08]}  Kxf8 {[%clk 0:02:20]} 22. Rd8+ {[%clk 0:01:53]}  Ke7 {[%clk 0:02:19]} 23. Rhd1 {[%clk 0:01:53]}  Nxd1 {[%clk 0:02:19]} 24. Rxd1 {[%clk 0:01:54]}  Be6 {[%clk 0:02:19]} 25. Kd2 {[%clk 0:01:45]}  Rg8 {[%clk 0:02:17]} 26. Bf1 {[%clk 0:01:43]}  Rg3 {[%clk 0:02:17]} 27. Ke2 {[%clk 0:01:40]}  f4 {[%clk 0:02:16]} 28. exf4 {[%clk 0:01:40]}  Rxb3 {[%clk 0:02:17]} 29. Rc1 {[%clk 0:01:28]}  Rxb2+ {[%clk 0:02:16]} 30. Ke3 {[%clk 0:01:29]}  f5 {[%clk 0:02:16]} 31. Be2 {[%clk 0:01:29]}  Rb3+ {[%clk 0:02:14]} 32. Kf2 {[%clk 0:01:29]}  a6 {[%clk 0:02:13]} 33. Rg1 {[%clk 0:01:15]}  b5 {[%clk 0:02:11]} 34. Ra1 {[%clk 0:01:11]}  Bxc4 {[%clk 0:02:07]} 35. Bxc4 {[%clk 0:01:08]}  bxc4 {[%clk 0:02:08]} 36. Rxa6 {[%clk 0:01:08]}  c3 {[%clk 0:02:08]} 37. Ke3 {[%clk 0:01:07]}  Rb2 {[%clk 0:01:40]} 38. Ra3 {[%clk 0:00:58]}  Rxg2 {[%clk 0:01:39]} 39. Rxc3 {[%clk 0:00:57]}  Rg3+ {[%clk 0:01:39]} 40. Kd2 {[%clk 0:00:57]}  Rxc3 {[%clk 0:01:40]} 41. Kxc3 {[%clk 0:00:58]}  Kd6 {[%clk 0:01:40]} 0-1


[Site "https://www.chess.com"]